[Event "FIDE WYCC Open U14 2023"]
[Site "Montesilvano"]
[Date "2023.11.15"]
[Round "3.31"]
[White "Heidarsson, Mikael Bjarki"]
[Black "Villa Tornero, Alex"]
[Result "0-1"]
[ECO "A67"]
[WhiteElo "1767"]
[BlackElo "2383"]
[Annotator "RC"]
[PlyCount "44"]
[EventDate "2023.11.13"]
[EventType "swiss"]
[EventCountry "ITA"]
[SourceTitle "playchess.com"]
[Source "ChessBase"]
[SourceQuality "1"]
[TimeControl "40/5400+30:1800+30"]

1. d4 {[%emt 0:00:05]} Nf6 {[%emt 0:00:35]} 2. c4 {[%emt 0:00:10]} c5 {[%emt 0:00:43]} 3. d5 {[%emt 0:00:06]} e6 {[%emt 0:00:14]} 4. Nc3 {[%emt 0:00:12]} exd5 {[%emt 0:00:04]} 5. cxd5 {[%emt 0:00:06]} d6 {[%emt 0:00:19]} 6. e4 {[%emt 0:00:06]} g6 {[%emt 0:00:18]} 7. f4 {[%emt 0:00:35]} Bg7 {[%emt 0:00:22]} 8. Bb5+ {[%emt 0:00:09]} Nfd7 {[%emt 0:00:51]} 9. a4 {[%emt 0:00:30]} Na6 {[%emt 0:00:56]} 10. Bxa6 {[%emt 0:05:02]} bxa6 {[%emt 0:01:29]} 11. Nf3 {[%emt 0:01:35]} O-O {[%emt 0:00:36]} 12. O-O {[%emt 0:00:34]} Re8 {[%emt 0:01:49]} 13. Qc2 {[%emt 0:01:45]} Rb8 {[%emt 0:00:22]} 14. Nd2 {[%emt 0:10:22]} Nf6 {[%emt 0:10:07]} 15. b3 {[%emt 0:10:20]} Ng4 {[%emt 0:02:01]} 16. Re1 {[%emt 0:18:28]} Bd4+ {[%emt 0:01:54]} 17. Kf1 {[%emt 0:03:19]} Nxh2+ {[%emt 0:01:48]} 18. Ke2 {[%emt 0:00:13]} Qh4 {[%emt 0:01:05]} 19. Bb2 {[%emt 0:05:37]} Bg4+ {[%emt 0:01:32]} 20. Kd3 {[%emt 0:02:28]} Qg3+ {[%emt 0:01:08]} 21. Nf3 {[%emt 0:00:06]} Nxf3 {[%emt 0:00:30]} 22. gxf3 {[%emt 0:00:13]} Bxf3 {[%emt 0:08:32]} 0-1

[Event "FIDE WYCC Open U14 2023"]
[Site "Montesilvano"]
[Date "2023.11.15"]
[Round "3.32"]
[White "Rashed Abubaker, Alhemeiri"]
[Black "Agasarov, Benik"]
[Result "0-1"]
[ECO "B50"]
[WhiteElo "1717"]
[BlackElo "2360"]
[Annotator "RC"]
[PlyCount "50"]
[EventDate "2023.11.13"]
[EventType "swiss"]
[EventCountry "ITA"]
[SourceTitle "playchess.com"]
[Source "ChessBase"]
[SourceQuality "1"]
[TimeControl "40/5400+30:1800+30"]

1. e4 {[%emt 0:00:05]} c5 {[%emt 0:00:12]} 2. Nf3 {[%emt 0:00:09]} d6 {[%emt 0:00:27]} 3. c3 {[%emt 0:00:21]} Nf6 {[%emt 0:00:24]} 4. Be2 {[%emt 0:00:21]} g6 {[%emt 0:00:29]} 5. O-O {[%emt 0:01:03]} Bg7 {[%emt 0:00:31]} 6. Bb5+ {[%emt 0:02:31]} Nc6 {[%emt 0:05:07]} 7. Re1 {[%emt 0:00:12]} O-O {[%emt 0:01:12]} 8. h3 {[%emt 0:01:17]} Qb6 {[%emt 0:05:29]} 9. Bf1 {[%emt 0:04:36]} e5 {[%emt 0:02:19]} 10. a4 {[%emt 0:02:54]} d5 {[%emt 0:08:27]} 11. d3 {[%emt 0:07:06]} h6 {[%emt 0:05:05]} 12. Nbd2 {[%emt 0:03:27]} Be6 {[%emt 0:00:55]} 13. exd5 {[%emt 0:09:18]} Nxd5 {[%emt 0:00:20]} 14. Nc4 {[%emt 0:00:36]} Qc7 {[%emt 0:00:11]} 15. g3 {[%emt 0:03:27]} Rfe8 {[%emt 0:06:45]} 16. Bg2 {[%emt 0:01:39]} Rad8 {[%emt 0:00:42]} 17. Qe2 {[%emt 0:04:58]} Bf5 {[%emt 0:04:23]} 18. Nh4 {[%emt 0:00:41]} Be6 {[%emt 0:09:17]} 19. Ne3 {[%emt 0:04:48]} Nde7 {[%emt 0:03:33]} 20. Rd1 {[%emt 0:11:15]} g5 {[%emt 0:01:42]} 21. Nf3 {[%emt 0:00:55]} f5 {[%emt 0:00:50]} 22. Nf1 {[%emt 0:10:49]} Ng6 {[%emt 0:03:34]} 23. b4 {[%emt 0:13:18]} cxb4 {[%emt 0:00:25]} 24. Rb1 {[%emt 0:05:09]} bxc3 {[%emt 0:00:18]} 25. Qc2 {[%emt 0:00:43]} g4 {[%emt 0:01:50]} 0-1

[Event "FIDE WYCC Open U14 2023"]
[Site "Montesilvano"]
[Date "2023.11.15"]
[Round "3.33"]
[White "Salinas Cardenas, Rodrigo Salvador"]
[Black "Besou, Hussain"]
[Result "1/2-1/2"]
[ECO "D37"]
[WhiteElo "1714"]
[BlackElo "2341"]
[Annotator "RC"]
[PlyCount "101"]
[EventDate "2023.11.13"]
[EventType "swiss"]
[EventCountry "ITA"]
[SourceTitle "playchess.com"]
[Source "ChessBase"]
[SourceQuality "1"]
[TimeControl "40/5400+30:1800+30"]

1. d4 {[%emt 0:00:08]} Nf6 {[%emt 0:00:08]} 2. c4 {[%emt 0:00:14]} e6 {[%emt 0:00:08]} 3. Nf3 {[%emt 0:00:11]} d5 {[%emt 0:00:08]} 4. Nc3 {[%emt 0:00:17]} Be7 {[%emt 0:02:41]} 5. cxd5 {[%emt 0:00:38]} exd5 {[%emt 0:00:09]} 6. Bg5 {[%emt 0:00:11]} O-O {[%emt 0:00:08]} 7. e3 {[%emt 0:00:18]} Re8 {[%emt 0:00:12]} 8. Bd3 {[%emt 0:00:50]} c6 {[%emt 0:00:25]} 9. O-O {[%emt 0:01:53]} Nbd7 {[%emt 0:00:12]} 10. Qc2 {[%emt 0:01:39]} h6 {[%emt 0:02:21]} 11. Bf4 {[%emt 0:03:26]} Nf8 {[%emt 0:02:07]} 12. h3 {[%emt 0:03:57]} Bd6 {[%emt 0:05:17]} 13. Bxd6 {[%emt 0:00:46]} Qxd6 {[%emt 0:00:06]} 14. Rab1 {[%emt 0:03:20]} Be6 {[%emt 0:13:13]} 15. Ne5 {[%emt 0:15:53]} N6d7 {[%emt 0:07:22]} 16. Nxd7 {[%emt 0:04:20]} Bxd7 {[%emt 0:01:21]} 17. Na4 {[%emt 0:06:03]} b6 {[%emt 0:04:30]} 18. b4 {[%emt 0:01:21]} Ne6 {[%emt 0:00:25]} 19. Rfc1 {[%emt 0:03:23]} Ng5 {[%emt 0:06:18]} 20. Bf5 {[%emt 0:10:04]} Bxf5 {[%emt 0:04:12]} 21. Qxf5 {[%emt 0:00:20]} Ne4 {[%emt 0:00:31]} 22. Rc2 {[%emt 0:16:50]} Re6 {[%emt 0:02:25]} 23. Nc3 {[%emt 0:09:10]} Nf6 {[%emt 0:02:37]} 24. b5 {[%emt 0:05:23]} c5 {[%emt 0:07:33]} 25. dxc5 {[%emt 0:01:44]} bxc5 {[%emt 0:00:28]} 26. Rd1 {[%emt 0:03:17]} Re5 {[%emt 0:02:28]} 27. Qf3 {[%emt 0:00:17]} Rd8 {[%emt 0:02:16]} 28. Rcd2 {[%emt 0:00:48]} Qe6 {[%emt 0:00:42]} 29. a4 {[%emt 0:03:16]} g6 {[%emt 0:02:08]} 30. a5 {[%emt 0:02:48]} Kg7 {[%emt 0:01:54]} 31. Kh1 {[%emt 0:02:07]} d4 {[%emt 0:14:45]} 32. exd4 {[%emt 0:00:53]} Re1+ {[%emt 0:00:10]} 33. Kh2 {[%emt 0:00:11]} Rxd1 {[%emt 0:00:14]} 34. Qxd1 {[%emt 0:00:25]} cxd4 {[%emt 0:00:05]} 35. g3 {[%emt 0:00:40]} Qf5 {[%emt 0:01:35]} 36. Kg1 {[%emt 0:00:56]} Rc8 {[%emt 0:09:35]} 37. Ne2 {[%emt 0:00:29]} Ne4 {[%emt 0:02:14]} 38. Nxd4 {[%emt 0:00:16]} Qf6 {[%emt 0:00:17]} 39. Ra2 {[%emt 0:00:46]} Nc3 {[%emt 0:00:42]} 40. Qg4 {[%emt 0:00:00]} Re8 {[%emt 0:00:00]} 41. Rc2 {[%emt 0:06:47]} Re4 {[%emt 0:16:01]} 42. Qf3 {[%emt 0:09:26]} Qxf3 {[%emt 0:02:03]} 43. Nxf3 {[%emt 0:00:06]} Nxb5 {[%emt 0:00:02]} 44. Rc5 {[%emt 0:03:40]} a6 {[%emt 0:02:26]} 45. Rc6 {[%emt 0:02:29]} Re6 {[%emt 0:00:07]} 46. Rxe6 {[%emt 0:02:10]} fxe6 {[%emt 0:00:06]} 47. Ne5 {[%emt 0:02:58]} g5 {[%emt 0:00:31]} 48. f4 {[%emt 0:01:11]} Kf6 {[%emt 0:00:57]} 49. Kf2 {[%emt 0:00:36]} gxf4 {[%emt 0:00:58]} 50. gxf4 {[%emt 0:00:06]} Kf5 {[%emt 0:00:05]} 51. Ke3 {[%emt 0:02:12]} 1/2-1/2

[Event "FIDE WYCC Open U14 2023"]
[Site "Montesilvano"]
[Date "2023.11.15"]
[Round "3.34"]
[White "Tenuunbold, Battulga"]
[Black "Guretchii, Kirill"]
[Result "1/2-1/2"]
[ECO "D30"]
[WhiteElo "2290"]
[BlackElo "1806"]
[Annotator "ChessBase"]
[PlyCount "105"]
[EventDate "2023.11.13"]
[EventType "swiss"]
[EventCountry "ITA"]
[SourceTitle "playchess.com"]
[Source "ChessBase"]
[SourceQuality "1"]
[TimeControl "40/5400+30:1800+30"]

1. d4 {[%emt 0:00:01]} d5 {[%emt 0:02:11]} 2. c4 {[%emt 0:00:22]} e6 {[%emt 0:00:07]} 3. Nf3 {[%emt 0:00:10]} Nf6 {[%emt 0:00:09]} 4. g3 {[%emt 0:00:07]} Nc6 {[%emt 0:00:06]} 5. Bg2 {[%emt 0:01:38]} Bd6 {[%emt 0:00:45]} 6. O-O {[%emt 0:01:14]} O-O {[%emt 0:00:09]} 7. Nc3 {[%emt 0:03:12]} dxc4 {[%emt 0:00:35]} 8. e4 {[%emt 0:00:58]} e5 {[%emt 0:00:06]} 9. d5 {[%emt 0:01:19]} Na5 {[%emt 0:01:06]} 10. Qe2 {[%emt 0:09:00]} Bg4 {[%emt 0:05:36]} 11. Bd2 {[%emt 0:03:15]} c6 {[%emt 0:19:10]} 12. dxc6 {[%emt 0:02:23]} bxc6 {[%emt 0:06:02]} 13. Rfd1 {[%emt 0:01:28]} Qe7 {[%emt 0:14:45]} 14. h3 {[%emt 0:02:24]} Bxf3 {[%emt 0:01:11]} 15. Qxf3 {[%emt 0:01:50]} h6 {[%emt 0:10:49]} 16. Rac1 {[%emt 0:05:42]} Rab8 {[%emt 0:06:13]} 17. Na4 {[%emt 0:02:53]} Bb4 {[%emt 0:00:54]} 18. Be3 {[%emt 0:00:11]} Rfd8 {[%emt 0:05:59]} 19. Rxd8+ {[%emt 0:04:21]} Rxd8 {[%emt 0:00:35]} 20. Bf1 {[%emt 0:00:23]} Bd2 {[%emt 0:03:45]} 21. Bc5 {[%emt 0:00:32]} Qb7 {[%emt 0:02:49]} 22. Rd1 {[%emt 0:01:43]} Rd7 {[%emt 0:00:24]} 23. Qf5 {[%emt 0:07:42]} Qc7 {[%emt 0:04:02]} 24. h4 {[%emt 0:03:46]} h5 {[%emt 0:00:43]} 25. Ba3 {[%emt 0:02:50]} Rd4 {[%emt 0:04:42]} 26. Bc5 {[%emt 0:00:49]} Rd7 {[%emt 0:00:16]} 27. Be2 {[%emt 0:02:31]} Bh6 {[%emt 0:03:39]} 28. Rxd7 {[%emt 0:00:19]} Nxd7 {[%emt 0:00:29]} 29. Bb4 {[%emt 0:02:14]} g6 {[%emt 0:01:29]} 30. Qf3 {[%emt 0:00:16]} Kg7 {[%emt 0:01:11]} 31. Qc3 {[%emt 0:00:54]} Nb7 {[%emt 0:00:13]} 32. Bxc4 {[%emt 0:00:27]} Nf6 {[%emt 0:00:31]} 33. Qd3 {[%emt 0:04:23]} g5 {[%emt 0:02:54]} 34. hxg5 {[%emt 0:01:09]} Bxg5 {[%emt 0:00:05]} 35. Nc5 {[%emt 0:01:09]} Qb6 {[%emt 0:00:35]} 36. Nxb7 {[%emt 0:00:40]} Qxb4 {[%emt 0:00:53]} 37. Nd6 {[%emt 0:00:09]} Ng4 {[%emt 0:01:17]} 38. Nf5+ {[%emt 0:01:56]} Kg8 {[%emt 0:00:28]} 39. Qe2 {[%emt 0:01:58]} Qc5 {[%emt 0:00:53]} 40. b3 {[%emt 0:00:00]} a5 {[%emt 0:00:00]} 41. Qf3 {[%emt 0:01:22]} Kf8 {[%emt 0:02:28]} 42. a4 {[%emt 0:02:01]} f6 {[%emt 0:00:46]} 43. Kg2 {[%emt 0:02:09]} Qb6 {[%emt 0:02:50]} 44. Nd6 {[%emt 0:00:54]} Qd4 {[%emt 0:02:42]} 45. Nf7 {[%emt 0:03:32]} Bc1 {[%emt 0:02:47]} 46. Qf5 {[%emt 0:01:13]} Kg7 {[%emt 0:13:20]} 47. Qxh5 {[%emt 0:20:44]} Qxe4+ {[%emt 0:02:02]} 48. f3 {[%emt 0:00:44]} Ne3+ {[%emt 0:07:17]} 49. Kh3 {[%emt 0:00:30]} Qf5+ {[%emt 0:00:10]} 50. Qxf5 {[%emt 0:00:03]} Nxf5 {[%emt 0:00:03]} 51. Nd8 {[%emt 0:02:43]} Nd4 {[%emt 0:00:12]} 52. Ne6+ {[%emt 0:03:51]} Nxe6 {[%emt 0:00:06]} 53. Bxe6 {[%emt 0:00:02]} 1/2-1/2

[Event "FIDE WYCC Open U14 2023"]
[Site "Montesilvano"]
[Date "2023.11.15"]
[Round "3.35"]
[White "Yang, Sylvia Siyuan"]
[Black "Averin, Nikolay"]
[Result "1/2-1/2"]
[ECO "A06"]
[WhiteElo "1973"]
[BlackElo "2270"]
[Annotator "ChessBase"]
[PlyCount "128"]
[EventDate "2023.11.13"]
[EventType "swiss"]
[EventCountry "ITA"]
[SourceTitle "playchess.com"]
[Source "ChessBase"]
[SourceQuality "1"]
[TimeControl "40/5400+30:1800+30"]

1. Nf3 {[%emt 0:01:19]} d5 {[%emt 0:00:04]} 2. g3 {[%emt 0:00:04]} Bg4 {[%emt 0:00:03]} 3. Bg2 {[%emt 0:00:03]} c6 {[%emt 0:00:05]} 4. O-O {[%emt 0:00:04]} Nd7 {[%emt 0:00:38]} 5. c4 {[%emt 0:01:20]} e6 {[%emt 0:00:28]} 6. d3 {[%emt 0:03:35]} Ngf6 {[%emt 0:03:54]} 7. cxd5 {[%emt 0:00:08]} exd5 {[%emt 0:00:06]} 8. h3 {[%emt 0:00:29]} Bxf3 {[%emt 0:05:57]} 9. Bxf3 {[%emt 0:00:02]} Be7 {[%emt 0:01:53]} 10. d4 {[%emt 0:04:31]} O-O {[%emt 0:00:30]} 11. Nc3 {[%emt 0:00:07]} Re8 {[%emt 0:00:50]} 12. Qc2 {[%emt 0:05:23]} Nf8 {[%emt 0:00:49]} 13. Bg5 {[%emt 0:01:25]} Ne6 {[%emt 0:00:33]} 14. Bxf6 {[%emt 0:00:02]} Bxf6 {[%emt 0:00:07]} 15. e3 {[%emt 0:00:03]} Qd6 {[%emt 0:12:01]} 16. a4 {[%emt 0:04:38]} a5 {[%emt 0:00:22]} 17. Rfb1 {[%emt 0:02:50]} g6 {[%emt 0:00:55]} 18. Ne2 {[%emt 0:03:06]} h5 {[%emt 0:09:58]} 19. h4 {[%emt 0:00:29]} Ng7 {[%emt 0:10:41]} 20. Nf4 {[%emt 0:01:38]} Re7 {[%emt 0:24:06]} 21. Ra3 {[%emt 0:08:27]} Ne6 {[%emt 0:05:05]} 22. Nxe6 {[%emt 0:01:13]} Rxe6 {[%emt 0:00:42]} 23. Rb3 {[%emt 0:02:01]} Qd7 {[%emt 0:02:53]} 24. Rd1 {[%emt 0:01:01]} Bg7 {[%emt 0:08:04]} 25. Rb6 {[%emt 0:05:35]} Bf8 {[%emt 0:02:43]} 26. Rb3 {[%emt 0:06:07]} Bb4 {[%emt 0:00:15]} 27. Bg2 {[%emt 0:03:47]} Qd6 {[%emt 0:01:09]} 28. Rc1 {[%emt 0:03:02]} Kf8 {[%emt 0:00:59]} 29. Rd3 {[%emt 0:01:12]} Ke8 {[%emt 0:00:54]} 30. Rdd1 {[%emt 0:00:36]} f5 {[%emt 0:00:15]} 31. Qd3 {[%emt 0:00:51]} Kd7 {[%emt 0:00:22]} 32. Qb3 {[%emt 0:01:01]} Rd8 {[%emt 0:01:23]} 33. Bf3 {[%emt 0:01:29]} Kc7 {[%emt 0:00:25]} 34. Kg2 {[%emt 0:00:02]} Kb6 {[%emt 0:01:35]} 35. Rh1 {[%emt 0:00:37]} Qe7 {[%emt 0:01:05]} 36. Qd3 {[%emt 0:00:10]} Rg8 {[%emt 0:00:39]} 37. Rh3 {[%emt 0:00:57]} Ka7 {[%emt 0:00:24]} 38. Rd1 {[%emt 0:00:47]} Qd8 {[%emt 0:00:14]} 39. Rc1 {[%emt 0:00:44]} Qb6 {[%emt 0:00:11]} 40. Qb3 {[%emt 0:00:00]} Qd8 {[%emt 0:00:00]} 41. Qd3 {[%emt 0:01:09]} Bd6 {[%emt 0:01:44]} 42. Rch1 {[%emt 0:01:40]} Qb6 {[%emt 0:00:13]} 43. Qc3 {[%emt 0:00:02]} Qd8 {[%emt 0:00:36]} 44. Qb3 {[%emt 0:00:20]} Bb4 {[%emt 0:05:37]} 45. R3h2 {[%emt 0:00:07]} Qe7 {[%emt 0:01:07]} 46. Qd3 {[%emt 0:00:12]} Rf6 {[%emt 0:00:08]} 47. Rd1 {[%emt 0:01:32]} Ra8 {[%emt 0:00:21]} 48. Rc1 {[%emt 0:00:22]} Kb8 {[%emt 0:00:10]} 49. Qc2 {[%emt 0:00:27]} Rd6 {[%emt 0:00:58]} 50. Be2 {[%emt 0:00:13]} Qe4+ {[%emt 0:01:06]} 51. Bf3 {[%emt 0:00:01]} Qe6 {[%emt 0:01:23]} 52. Be2 {[%emt 0:00:01]} Qe7 {[%emt 0:00:34]} 53. Rhh1 {[%emt 0:00:05]} Ka7 {[%emt 0:00:26]} 54. Rh2 {[%emt 0:00:05]} Kb8 {[%emt 0:00:37]} 55. Rhh1 {[%emt 0:00:18]} Qe8 {[%emt 0:00:12]} 56. Rh2 {[%emt 0:00:09]} Re6 {[%emt 0:00:12]} 57. Rhh1 {[%emt 0:02:04]} Bd6 {[%emt 0:00:15]} 58. Kf1 {[%emt 0:00:37]} Qe7 {[%emt 0:00:39]} 59. Rh3 {[%emt 0:00:30]} Qd7 {[%emt 0:00:42]} 60. Kg2 {[%emt 0:00:06]} Re7 {[%emt 0:00:12]} 61. Rhh1 {[%emt 0:01:35]} Qe6 {[%emt 0:00:38]} 62. Kf1 {[%emt 0:03:08]} Qe4 {[%emt 0:00:18]} 63. Rh2 {[%emt 0:00:24]} Re8 {[%emt 0:01:01]} 64. Bd3 {[%emt 0:00:27]} Qe6 {[%emt 0:01:41]} 1/2-1/2

[Event "FIDE WYCC Open U14 2023"]
[Site "Montesilvano"]
[Date "2023.11.16"]
[Round "4.1"]
[White "Rustamov, Rustam"]
[Black "Ljepic, Andrej"]
[Result "1/2-1/2"]
[ECO "C10"]
[WhiteElo "2229"]
[BlackElo "2236"]
[Annotator "RC"]
[PlyCount "84"]
[EventDate "2023.11.13"]
[EventType "swiss"]
[EventCountry "ITA"]
[SourceTitle "playchess.com"]
[Source "ChessBase"]
[SourceQuality "1"]
[TimeControl "40/5400+30:1800+30"]

1. e4 {[%emt 0:00:04]} e6 {[%emt 0:00:09]} 2. d4 {[%emt 0:00:06]} d5 {[%emt 0:00:04]} 3. Nc3 {[%emt 0:00:09]} dxe4 {[%emt 0:00:07]} 4. Nxe4 {[%emt 0:00:06]} Nd7 {[%emt 0:00:04]} 5. Nf3 {[%emt 0:00:15]} Ngf6 {[%emt 0:00:06]} 6. Bd3 {[%emt 0:00:06]} c5 {[%emt 0:00:16]} 7. dxc5 {[%emt 0:00:56]} Nxc5 {[%emt 0:01:37]} 8. Nxf6+ {[%emt 0:01:45]} gxf6 {[%emt 0:02:21]} 9. Bb5+ {[%emt 0:00:23]} Bd7 {[%emt 0:00:12]} 10. Bxd7+ {[%emt 0:00:04]} Qxd7 {[%emt 0:00:22]} 11. Qxd7+ {[%emt 0:00:08]} Nxd7 {[%emt 0:00:54]} 12. Be3 {[%emt 0:00:21]} Bc5 {[%emt 0:00:46]} 13. Rd1 {[%emt 0:00:46]} Bxe3 {[%emt 0:01:01]} 14. fxe3 {[%emt 0:00:03]} Rc8 {[%emt 0:01:12]} 15. c3 {[%emt 0:00:19]} Nc5 {[%emt 0:06:20]} 16. c4 {[%emt 0:05:55]} Ke7 {[%emt 0:02:17]} 17. b3 {[%emt 0:02:35]} Rhd8 {[%emt 0:03:02]} 18. Ke2 {[%emt 0:01:12]} Ne4 {[%emt 0:02:27]} 19. Rd4 {[%emt 0:00:52]} f5 {[%emt 0:01:19]} 20. Rc1 {[%emt 0:01:42]} b5 {[%emt 0:29:39]} 21. Rxd8 {[%emt 0:04:51]} Kxd8 {[%emt 0:00:09]} 22. Nd2 {[%emt 0:00:44]} Nf6 {[%emt 0:04:48]} 23. b4 {[%emt 0:04:36]} Nd5 {[%emt 0:06:16]} 24. a3 {[%emt 0:01:31]} bxc4 {[%emt 0:03:27]} 25. Rxc4 {[%emt 0:00:16]} Rc7 {[%emt 0:04:35]} 26. g3 {[%emt 0:01:23]} f6 {[%emt 0:04:04]} 27. Kd3 {[%emt 0:00:33]} Rd7 {[%emt 0:01:08]} 28. Ke2 {[%emt 0:01:57]} Rc7 {[%emt 0:00:33]} 29. Rxc7 {[%emt 0:00:54]} Kxc7 {[%emt 0:00:14]} 30. Kd3 {[%emt 0:00:20]} Kc6 {[%emt 0:05:24]} 31. Nb1 {[%emt 0:01:10]} Nb6 {[%emt 0:03:14]} 32. Nc3 {[%emt 0:00:17]} Nd7 {[%emt 0:00:11]} 33. h3 {[%emt 0:09:14]} Ne5+ {[%emt 0:01:58]} 34. Kd4 {[%emt 0:00:11]} Nf3+ {[%emt 0:00:30]} 35. Kc4 {[%emt 0:00:30]} Nd2+ {[%emt 0:00:25]} 36. Kd3 {[%emt 0:01:31]} Nf3 {[%emt 0:01:11]} 37. Ne2 {[%emt 0:05:22]} e5 {[%emt 0:06:02]} 38. h4 {[%emt 0:02:22]} Ne1+ {[%emt 0:01:35]} 39. Kd2 {[%emt 0:00:17]} Nf3+ {[%emt 0:00:07]} 40. Kd3 {[%emt 0:00:00]} Ne1+ {[%emt 0:00:00]} 41. Kd2 {[%emt 0:00:58]} Nf3+ {[%emt 0:00:13]} 42. Kd3 {[%emt 0:04:15]} Ne1+ 1/2-1/2

[Event "FIDE WYCC Open U14 2023"]
[Site "Montesilvano"]
[Date "2023.11.16"]
[Round "4.2"]
[White "Vetokhin, Savva"]
[Black "Medhus, Vitus Bondo"]
[Result "1-0"]
[ECO "D51"]
[WhiteElo "2403"]
[BlackElo "2108"]
[Annotator "RC"]
[PlyCount "101"]
[EventDate "2023.11.13"]
[EventType "swiss"]
[EventCountry "ITA"]
[SourceTitle "playchess.com"]
[Source "ChessBase"]
[SourceQuality "1"]
[TimeControl "40/5400+30:1800+30"]

1. d4 {[%emt 0:00:03]} Nf6 {[%emt 0:00:06]} 2. c4 {[%emt 0:00:09]} e6 {[%emt 0:00:09]} 3. Nc3 {[%emt 0:00:14]} d5 {[%emt 0:00:15]} 4. Bg5 {[%emt 0:00:54]} Nbd7 {[%emt 0:01:07]} 5. e3 {[%emt 0:04:12]} h6 {[%emt 0:00:34]} 6. Bf4 {[%emt 0:01:20]} Bb4 {[%emt 0:01:32]} 7. Rc1 {[%emt 0:02:58]} O-O {[%emt 0:06:00]} 8. Nf3 {[%emt 0:07:57]} c5 {[%emt 0:03:45]} 9. Be2 {[%emt 0:12:56]} cxd4 {[%emt 0:15:58]} 10. exd4 {[%emt 0:00:43]} dxc4 {[%emt 0:00:07]} 11. Bxc4 {[%emt 0:00:10]} a6 {[%emt 0:01:16]} 12. a4 {[%emt 0:08:14]} Nb6 {[%emt 0:06:21]} 13. Bb3 {[%emt 0:00:10]} Nbd5 {[%emt 0:04:50]} 14. Bd2 {[%emt 0:01:31]} Nxc3 {[%emt 0:00:30]} 15. bxc3 {[%emt 0:01:49]} Ba3 {[%emt 0:00:10]} 16. Ra1 {[%emt 0:02:18]} Bd6 {[%emt 0:00:16]} 17. O-O {[%emt 0:01:45]} Ne4 {[%emt 0:04:08]} 18. Bc2 {[%emt 0:04:59]} Nxd2 {[%emt 0:00:21]} 19. Qxd2 {[%emt 0:00:05]} Bd7 {[%emt 0:06:55]} 20. Qd3 {[%emt 0:05:14]} g6 {[%emt 0:00:23]} 21. Qe3 {[%emt 0:00:07]} Kg7 {[%emt 0:03:59]} 22. Be4 {[%emt 0:05:24]} Qc7 {[%emt 0:01:06]} 23. c4 {[%emt 0:09:11]} Qxc4 {[%emt 0:13:13]} 24. Bxb7 {[%emt 0:00:47]} Rab8 {[%emt 0:06:14]} 25. Rfc1 {[%emt 0:02:50]} Qb4 {[%emt 0:00:07]} 26. Bxa6 {[%emt 0:01:26]} Rb6 {[%emt 0:02:34]} 27. Bd3 {[%emt 0:02:56]} Ra8 {[%emt 0:00:27]} 28. a5 {[%emt 0:00:48]} Rbb8 {[%emt 0:03:11]} 29. a6 {[%emt 0:01:33]} Ra7 {[%emt 0:00:11]} 30. Ne5 {[%emt 0:01:51]} Qb3 {[%emt 0:05:34]} 31. Rab1 {[%emt 0:04:49]} Qa3 {[%emt 0:01:37]} 32. Ra1 {[%emt 0:01:59]} Qb3 {[%emt 0:00:07]} 33. Ng4 {[%emt 0:04:38]} g5 {[%emt 0:01:44]} 34. Ne5 {[%emt 0:02:56]} f6 {[%emt 0:02:28]} 35. Nxd7 {[%emt 0:01:41]} Rxd7 {[%emt 0:01:55]} 36. Qe4 {[%emt 0:01:25]} f5 {[%emt 0:00:56]} 37. Qc6 {[%emt 0:00:04]} Rdd8 {[%emt 0:00:48]} 38. Bc4 {[%emt 0:00:17]} Qb2 {[%emt 0:01:34]} 39. Bxe6 {[%emt 0:02:27]} Rb6 {[%emt 0:00:19]} 40. Qc3 {[%emt 0:00:00]} Qxc3 {[%emt 0:00:00]} 41. Rxc3 {[%emt 0:04:34]} Be5 {[%emt 0:11:07]} 42. Bc8 {[%emt 0:14:18]} Bxd4 {[%emt 0:04:29]} 43. a7 {[%emt 0:09:26]} Rxc8 {[%emt 0:02:51]} 44. Rxc8 {[%emt 0:00:24]} Bxa1 {[%emt 0:00:51]} 45. g4 {[%emt 0:00:34]} Ra6 {[%emt 0:01:18]} 46. a8=Q {[%emt 0:00:04]} Rxa8 {[%emt 0:00:08]} 47. Rxa8 {[%emt 0:00:04]} Bc3 {[%emt 0:02:14]} 48. gxf5 {[%emt 0:00:08]} Kf6 {[%emt 0:01:39]} 49. Ra6+ {[%emt 0:00:11]} Kxf5 {[%emt 0:00:09]} 50. Rxh6 {[%emt 0:00:04]} Bg7 {[%emt 0:00:23]} 51. Ra6 {[%emt 0:00:07]} 1-0

[Event "FIDE WYCC Open U14 2023"]
[Site "Montesilvano"]
[Date "2023.11.16"]
[Round "4.3"]
[White "Dhruva Thota"]
[Black "Banh Gia Huy"]
[Result "0-1"]
[ECO "C02"]
[WhiteElo "2192"]
[BlackElo "2397"]
[Annotator "RC"]
[PlyCount "92"]
[EventDate "2023.11.13"]
[EventType "swiss"]
[EventCountry "ITA"]
[SourceTitle "playchess.com"]
[Source "ChessBase"]
[SourceQuality "1"]
[TimeControl "40/5400+30:1800+30"]

1. e4 {[%emt 0:00:37]} e6 {[%emt 0:00:05]} 2. d4 {[%emt 0:00:42]} d5 {[%emt 0:00:02]} 3. e5 {[%emt 0:00:28]} c5 {[%emt 0:00:05]} 4. c3 {[%emt 0:00:33]} Qb6 {[%emt 0:00:05]} 5. Nf3 {[%emt 0:00:37]} Bd7 {[%emt 0:00:06]} 6. a3 {[%emt 0:00:27]} Bb5 {[%emt 0:00:10]} 7. Bxb5+ {[%emt 0:01:14]} Qxb5 {[%emt 0:00:11]} 8. b4 {[%emt 0:00:39]} cxd4 {[%emt 0:00:09]} 9. cxd4 {[%emt 0:00:08]} Nd7 {[%emt 0:01:51]} 10. Nc3 {[%emt 0:00:17]} Qc6 {[%emt 0:00:09]} 11. Na4 {[%emt 0:00:25]} Nb6 {[%emt 0:04:11]} 12. Nxb6 {[%emt 0:00:18]} axb6 {[%emt 0:00:04]} 13. Bd2 {[%emt 0:00:35]} b5 {[%emt 0:09:10]} 14. O-O {[%emt 0:07:58]} Ne7 {[%emt 0:00:42]} 15. Qe2 {[%emt 0:11:19]} Nc8 {[%emt 0:01:44]} 16. Rac1 {[%emt 0:09:21]} Qd7 {[%emt 0:00:11]} 17. Rc3 {[%emt 0:01:13]} Nb6 {[%emt 0:00:20]} 18. Ng5 {[%emt 0:01:10]} h6 {[%emt 0:08:39]} 19. Qh5 {[%emt 0:07:29]} g6 {[%emt 0:02:48]} 20. Qh3 {[%emt 0:03:04]} Bg7 {[%emt 0:01:54]} 21. Nf3 {[%emt 0:01:25]} Rc8 {[%emt 0:06:40]} 22. Rfc1 {[%emt 0:04:06]} Rc4 {[%emt 0:03:42]} 23. Qg3 {[%emt 0:03:36]} Qc7 {[%emt 0:09:17]} 24. h4 {[%emt 0:03:30]} h5 {[%emt 0:07:58]} 25. Rxc4 {[%emt 0:08:12]} bxc4 {[%emt 0:02:45]} 26. Bg5 {[%emt 0:01:01]} Kd7 {[%emt 0:07:45]} 27. Qf4 {[%emt 0:00:54]} Kc6 {[%emt 0:10:24]} 28. Nd2 {[%emt 0:11:55]} Kb5 {[%emt 0:02:11]} 29. Nb1 {[%emt 0:02:57]} Na4 {[%emt 0:00:18]} 30. Bf6 {[%emt 0:04:02]} Bh6 {[%emt 0:01:48]} 31. Bg5 {[%emt 0:01:46]} Bxg5 {[%emt 0:00:26]} 32. hxg5 {[%emt 0:05:34]} c3 {[%emt 0:07:20]} 33. Qf3 {[%emt 0:01:06]} Rc8 {[%emt 0:00:05]} 34. Qd3+ {[%emt 0:00:38]} Qc4 {[%emt 0:06:30]} 35. Nxc3+ {[%emt 0:01:47]} Ka6 {[%emt 0:02:26]} 36. Qxc4+ {[%emt 0:00:44]} Rxc4 {[%emt 0:00:05]} 37. Ne2 {[%emt 0:00:26]} Rxc1+ {[%emt 0:00:18]} 38. Nxc1 {[%emt 0:00:07]} Kb5 {[%emt 0:00:03]} 39. Kf1 {[%emt 0:06:19]} Kc4 {[%emt 0:00:32]} 40. Ke2 {[%emt 0:00:00]} Kxd4 {[%emt 0:00:00]} 41. Kd2 {[%emt 0:07:05]} Kxe5 {[%emt 0:12:23]} 42. Nd3+ {[%emt 0:07:09]} Kd4 {[%emt 0:01:12]} 43. f4 {[%emt 0:01:42]} Nb6 {[%emt 0:02:17]} 44. Nc5 {[%emt 0:02:01]} Nc4+ {[%emt 0:00:29]} 45. Ke2 {[%emt 0:00:26]} b6 {[%emt 0:01:06]} 46. Nd7 {[%emt 0:00:08]} Kc3 {[%emt 0:00:37]} 0-1